fUSD/lending_fUSD_20260321
["ID","MTS","AMOUNT","RATE_DAILY","PERIOD"]
[408662029,1774079444080,-18552.07123891,0.000159,2]
[408662030,1774079444090,-1962.81419762,0.00015956,2]
[408662031,1774079444099,-569.27962609,0.00015964,2]
[408662032,1774079444110,-1521.0,0.00015983,2]
[408662033,1774079444122,-1521.0,0.00015983,2]
[408662034,1774079444132,-1521.0,0.00015983,2]
[408662035,1774079444142,-1521.0,0.00015983,2]
[408662036,1774079444152,-1521.0,0.00015983,2]
[408662037,1774079444162,-1521.0,0.00015983,2]
[408662038,1774079444171,-1521.0,0.00015983,2]
[408662039,1774079444181,-1521.0,0.00015983,2]
[408662040,1774079444190,-1521.0,0.00015983,2]
[408662041,1774079444200,-1521.0,0.00015983,2]
[408662042,1774079444210,-1521.0,0.00015983,2]
[408662043,1774079444220,-1521.0,0.00015983,2]
[408662044,1774079444229,-1521.0,0.00015983,2]
[408662045,1774079444239,-1521.0,0.00015983,2]
[408662046,1774079444249,-1521.0,0.00015983,2]
[408662047,1774079444258,-1521.0,0.00015983,2]
[408662048,1774079444268,-1521.0,0.00015983,2]
[408662049,1774079444278,-1521.0,0.00015983,2]
[408662050,1774079444287,-1361.4671969,0.00015983,2]
[408662051,1774079444297,-151.0,0.00015983,2]
[408662052,1774079444306,-152.91910529,0.00015983,2]
[408662053,1774079444319,-153.0,0.00015983,2]
[408662054,1774079444329,-153.0,0.00015983,2]
[408662055,1774079444339,-153.0,0.00015983,2]
[408662056,1774079444349,-237.93814367,0.00015983,2]
[408662057,1774079444358,-12281.5530185,0.00015996,2]
[408662058,1774079444369,-408676.4481023,0.00015996,2]
[408662059,1774079444379,-500.0,0.00015999,2]
[408662060,1774079444389,-500.0,0.00015999,2]
[408662061,1774079444399,-500.0,0.00015999,2]
[408662062,1774079444408,-500.0,0.00015999,2]
[408662063,1774079444418,-580.8989572,0.00015999,2]
[408662064,1774079444428,-510.46975568,0.00015999,2]
[408662065,1774079444438,-500.0,0.00015999,2]
[408662066,1774079444449,-670.0,0.00016,5]
[408662067,1774079444458,-4445266.77404019,0.00016,2]
[408662068,1774079444492,-292.33626793,0.00016,2]
[408662069,1774079444507,-3506.45982077,0.00016,2]
[408662070,1774079444522,-1400.48187086,0.00016,2]
[408662071,1774079444715,-56.30816689,0.00016,2]
[408662072,1774079444736,-271495.13324446,0.00016,2]
[408662077,1774080095041,666.33,9.5e-05,2]
[408662083,1774080115855,666.333333,9.5e-05,2]
[408662087,1774080136353,666.66666666,9.5e-05,2]
[408662090,1774080319882,174.74,6.943e-05,2]
[408662092,1774080560156,-174.74,0.00010415,2]
[408662093,1774080560177,-185.21306351,0.00011483,2]
[408662094,1774080560198,-166.66,0.00011583,2]
[408662095,1774080560219,-250.0,0.00011583,2]
[408662096,1774080560242,-4767.84365849,0.00011583,2]
[408662100,1774080631775,-245.0,0.00011583,2]
[408662101,1774080631785,-250.0,0.00011617,2]
[408662102,1774080631796,-166.66,0.00011827,2]
[408662103,1774080631805,-259.6075,0.00012,2]
[408662104,1774080631815,-29.5842465,0.0001207,2]
[408662105,1774080631827,-137.0757535,0.0001207,2]
[408662106,1774080631836,-373.5342465,0.00012192,2]
[408662107,1774080631946,-126.4657535,0.00012192,2]
[408662108,1774080631957,-166.66,0.00012314,2]
[408662109,1774080631966,-94.8939435,0.00012558,2]
[408662110,1774080631977,-71.7660565,0.00012558,2]
[408662111,1774080631986,-250.0,0.00012741,2]
[408662113,1774080631996,-166.66,0.00012802,2]
[408662114,1774080632005,-188.8439435,0.0001362,2]
[408662115,1774080632016,-311.1560565,0.0001362,2]
[408662116,1774080632026,-580.8989572,0.00013698,2]
[408662117,1774080632035,-500.0,0.00013698,2]
[408662118,1774080632045,-500.0,0.00013698,2]
[408662119,1774080632054,-141.26598056,0.000137,2]
[408662120,1774080632066,-367.48137649,0.000137,2]
[408662121,1774080632075,-338.73,0.00013882,2]
[408662122,1774080632085,-174.74,0.00013886,2]
[408662123,1774080632095,-559.93,0.00013955,2]
[408662124,1774080632105,-156.36296868,0.00014029,2]
[408662125,1774080632115,-2042.77785542,0.0001403,2]
[408662126,1774080632127,-250.0,0.0001403,2]
[408662128,1774080637879,-874.22355268,0.0001403,2]
[408662129,1774080638018,-453.7038441,0.0001403,2]
[408662130,1774080638030,-3719.55,0.0001403,2]
[408662131,1774080638062,-1100.0,0.0001403,2]
[408662136,1774080640142,-1431.2947478,0.0001403,2]
[408662137,1774080640161,-3240.0,0.00014035,2]
[408662138,1774080640173,-1852.42,0.00014092,2]
[408662139,1774080640184,-203.9,0.00014291,2]
[408662140,1774080640421,-200.0,0.00014291,2]
[408662141,1774080640438,-2000.0,0.00014291,2]
[408662142,1774080640452,-500.0,0.00014356,2]
[408662143,1774080640462,-200.0,0.00014999,2]
[408662144,1774080640472,-250.0,0.00015,2]
[408662145,1774080640483,-1500.0,0.00015037,2]
[408662146,1774080640493,-1461.88841996,0.00015107,2]
[408662147,1774080640503,-1280.52464246,0.00015107,2]
[408662148,1774080640513,-500.0,0.00015199,2]
[408662149,1774080640523,-500.0,0.00015199,2]
[408662150,1774080640533,-500.0,0.00015199,2]
[408662151,1774080640543,-500.0,0.00015199,2]
[408662152,1774080640553,-250.0,0.00015199,2]
[408662153,1774080640562,-500.0,0.00015199,2]
[408662154,1774080640571,-250.0,0.00015199,2]
[408662155,1774080640581,-250.0,0.00015199,2]
[408662156,1774080640591,-500.0,0.00015199,2]
[408662157,1774080640600,-500.0,0.00015199,2]
[408662158,1774080640610,-250.0,0.00015199,2]
[408662159,1774080640620,-250.0,0.00015199,2]
[408662160,1774080640630,-500.0,0.00015199,2]
[408662161,1774080640640,-500.0,0.00015199,2]
[408662162,1774080640658,-250.0,0.00015199,2]
[408662163,1774080640667,-250.0,0.00015199,2]
[408662164,1774080640677,-500.0,0.00015199,2]
[408662165,1774080640687,-500.0,0.00015199,2]
[408662166,1774080640696,-250.0,0.00015199,2]
[408662167,1774080640706,-250.0,0.00015199,2]
[408662168,1774080640715,-500.0,0.00015199,2]
[408662169,1774080640725,-500.0,0.00015199,2]
[408662170,1774080640734,-268.3661478,0.00015199,2]
[408662171,1774080640743,-250.0,0.00015199,2]
[408662172,1774080640752,-500.0,0.00015199,2]
[408662173,1774080640762,-516.47340423,0.00015199,2]
[408662174,1774080640771,-250.0,0.00015199,2]
[408662175,1774080640780,-500.0,0.00015199,2]
[408662176,1774080640790,-250.0,0.00015199,2]
[408662177,1774080640799,-500.0,0.00015199,2]
[408662178,1774080640809,-250.0,0.00015199,2]
[408662179,1774080640818,-500.0,0.00015199,2]
[408662180,1774080640827,-250.0,0.00015199,2]
[408662181,1774080640837,-500.0,0.00015199,2]
[408662182,1774080640846,-250.0,0.00015199,2]
[408662183,1774080640856,-500.0,0.00015199,2]
[408662184,1774080640865,-260.83847575,0.00015199,2]
[408662185,1774080640875,-500.0,0.00015199,2]
[408662186,1774080640884,-500.0,0.00015199,2]
[408662187,1774080640894,-250.0,0.00015199,2]
[408662188,1774080640904,-250.0,0.00015199,2]
[408662189,1774080640914,-151.0,0.00015199,2]
[408662190,1774080640928,-317.16756118,0.00015199,2]
[408662191,1774080640945,-250.0,0.00015199,2]
[408662192,1774080640955,-250.0,0.00015199,2]
[408662193,1774080640965,-250.0,0.00015199,2]
[408662194,1774080640974,-250.0,0.00015199,2]
[408662195,1774080640983,-250.0,0.00015199,2]
[408662196,1774080640993,-250.0,0.00015199,2]
[408662197,1774080641003,-250.0,0.00015199,2]
[408662199,1774080641012,-250.0,0.00015199,2]
[408662200,1774080641025,-250.0,0.00015199,2]
[408662201,1774080641034,-250.0,0.00015199,2]
[408662202,1774080641043,-250.0,0.00015199,2]
[408662203,1774080641053,-271.42195185,0.00015199,2]
[408662204,1774080641063,-600.0,0.000152,5]
[408662205,1774080641073,-500.0,0.00015254,2]
[408662206,1774080641082,-151.0,0.00015254,2]
[408662207,1774080641092,-1300.0,0.000153,5]
[408662209,1774080641102,-500.0,0.00015309,2]
[408662211,1774080641112,-151.0,0.00015309,2]
[408662213,1774080641122,-296.0,0.00015354,2]
[408662214,1774080641131,-500.0,0.00015364,2]
[408662215,1774080641141,-151.0,0.00015364,2]
[408662216,1774080641151,-2000.0,0.000154,5]
[408662217,1774080641160,-500.0,0.00015419,2]
[408662218,1774080641171,-151.0,0.00015419,2]
[408662219,1774080641181,-500.0,0.00015442,2]
[408662220,1774080641191,-500.0,0.00015442,2]
[408662221,1774080641201,-500.0,0.00015442,2]
[408662222,1774080641210,-500.0,0.00015442,2]
[408662223,1774080641224,-500.0,0.00015442,2]
[408662224,1774080641234,-500.0,0.00015442,2]
[408662225,1774080641243,-500.0,0.00015442,2]
[408662226,1774080641253,-500.0,0.00015442,2]
[408662227,1774080641263,-500.0,0.00015442,2]
[408662228,1774080641273,-500.0,0.00015442,2]
[408662229,1774080641283,-500.0,0.00015442,2]
[408662230,1774080641292,-500.0,0.00015442,2]
[408662231,1774080641302,-500.0,0.00015442,2]
[408662232,1774080641310,-500.0,0.00015442,2]
[408662233,1774080641319,-500.0,0.00015442,2]
[408662234,1774080641329,-219.26244926,0.00015442,2]
[408662235,1774080641339,-500.0,0.00015442,2]
[408662236,1774080641348,-500.0,0.00015442,2]
[408662237,1774080641358,-158.98696403,0.00015442,2]
[408662238,1774080641368,-500.0,0.00015442,2]
[408662239,1774080641377,-500.0,0.00015442,2]
[408662240,1774080641387,-504.87563133,0.00015442,2]
[408662241,1774080641397,-500.0,0.00015442,2]
[408662242,1774080641406,-500.0,0.00015442,2]
[408662243,1774080641420,-474.69033023,0.00015442,2]
[408662244,1774080641430,-500.0,0.00015442,2]
[408662245,1774080641440,-500.0,0.00015442,2]
[408662246,1774080641450,-150.0,0.00015442,2]
[408662247,1774080641460,-500.0,0.00015442,2]
[408662248,1774080641470,-209.54298795,0.00015442,2]
[408662249,1774080641480,-500.0,0.00015442,2]
[408662250,1774080641490,-150.0,0.00015442,2]
[408662251,1774080641500,-500.0,0.00015442,2]
[408662252,1774080641510,-500.0,0.00015442,2]
[408662253,1774080641520,-500.0,0.00015442,2]
[408662254,1774080641529,-500.0,0.00015442,2]
[408662255,1774080641539,-600.2919257,0.00015474,2]
[408662256,1774080641549,-152.37586706,0.000155,2]
[408662257,1774080641558,-160.52843012,0.000155,2]
[408662258,1774080641568,-2700.0,0.000155,5]
[408662259,1774080641578,-2215.84,0.00015507,2]
[408662260,1774080641589,-5495.4584,0.00015537,2]
[408662261,1774080641599,-2500.0,0.00015546,2]
[408662262,1774080641609,-5000.0,0.00015546,2]
[408662263,1774080641619,-417.81550229,0.00015547,2]
[408662264,1774080641629,-3208.16982929,0.00015548,2]
[408662265,1774080641640,-446.0,0.0001557,2]
[408662266,1774080641654,-446.0,0.0001557,2]
[408662267,1774080641664,-446.0,0.0001557,2]
[408662268,1774080641673,-446.0,0.0001557,2]
[408662269,1774080641683,-446.0,0.0001557,2]
[408662270,1774080641693,-446.0,0.0001557,2]
[408662271,1774080641704,-446.0,0.0001557,2]
[408662272,1774080641714,-446.0,0.0001557,2]
[408662273,1774080641726,-446.0,0.0001557,2]
[408662274,1774080641736,-446.0,0.0001557,2]
[408662275,1774080641746,-446.0,0.0001557,2]
[408662276,1774080641756,-446.0,0.0001557,2]
[408662277,1774080641765,-446.0,0.0001557,2]
[408662278,1774080641775,-446.0,0.0001557,2]
[408662279,1774080641784,-446.0,0.0001557,2]
[408662280,1774080641796,-446.0,0.0001557,2]
[408662281,1774080641806,-446.0,0.0001557,2]
[408662282,1774080641816,-446.0,0.0001557,2]
[408662283,1774080641826,-446.0,0.0001557,2]
[408662284,1774080641835,-446.0,0.0001557,2]
[408662285,1774080641845,-446.0,0.0001557,2]
[408662286,1774080641854,-446.0,0.0001557,2]
[408662287,1774080641863,-446.0,0.0001557,2]
[408662288,1774080641873,-455.95065984,0.0001557,2]
[408662289,1774080641882,-5993.33026936,0.00015575,2]
[408662290,1774080641892,-164.796931,0.00015582,7]
[408662291,1774080641902,-3208.16982927,0.00015587,2]
[408662292,1774080641912,-440.82152138,0.00015597,2]
[408662293,1774080641922,-417.81550229,0.00015597,2]
[408662294,1774080641932,-3400.0,0.000156,5]
[408662295,1774080641941,-5993.33026931,0.00015611,2]
[408662296,1774080641951,-3208.16982927,0.00015626,2]
[408662297,1774080641961,-500.0,0.00015645,2]
[408662298,1774080641970,-500.0,0.00015645,2]
[408662299,1774080641980,-500.0,0.00015645,2]
[408662300,1774080641990,-151.0,0.00015646,2]
[408662301,1774080641999,-151.0,0.00015646,2]
[408662302,1774080642008,-151.0,0.00015646,2]
[408662303,1774080642018,-151.0,0.00015646,2]
[408662304,1774080642028,-151.0,0.00015646,2]
[408662305,1774080642038,-151.0,0.00015646,2]
[408662306,1774080642048,-151.0,0.00015646,2]
[408662307,1774080642057,-151.0,0.00015646,2]
[408662308,1774080642067,-151.0,0.00015646,2]
[408662309,1774080642076,-151.0,0.00015646,2]
[408662310,1774080642086,-151.0,0.00015646,2]
[408662311,1774080642096,-151.0,0.00015646,2]
[408662312,1774080642106,-151.0,0.00015646,2]
[408662313,1774080642116,-151.0,0.00015646,2]
[408662314,1774080642126,-151.0,0.00015646,2]
[408662315,1774080642135,-151.0,0.00015646,2]
[408662316,1774080642146,-151.0,0.00015646,2]
[408662317,1774080642155,-151.0,0.00015646,2]
[408662318,1774080642165,-151.0,0.00015646,2]
[408662319,1774080642181,-151.0,0.00015646,2]
[408662320,1774080642195,-151.0,0.00015646,2]
[408662321,1774080642206,-151.0,0.00015646,2]
[408662322,1774080642217,-151.0,0.00015646,2]
[408662323,1774080642228,-151.0,0.00015646,2]
[408662324,1774080642238,-151.0,0.00015646,2]
[408662325,1774080642248,-151.0,0.00015646,2]
[408662326,1774080642258,-151.0,0.00015646,2]
[408662327,1774080642269,-151.0,0.00015646,2]
[408662328,1774080642279,-151.0,0.00015646,2]
[408662329,1774080642288,-151.0,0.00015646,2]
[408662330,1774080642298,-151.0,0.00015646,2]
[408662331,1774080642308,-151.0,0.00015646,2]
[408662332,1774080642318,-151.0,0.00015646,2]
[408662333,1774080642328,-151.0,0.00015646,2]
[408662334,1774080642338,-151.0,0.00015646,2]
[408662335,1774080642348,-202.067671,0.00015646,2]
[408662336,1774080642359,-718163.5156,0.00015646,2]
[408662337,1774080642370,-5993.33026931,0.00015647,2]
[408662338,1774080642380,-417.81550229,0.00015648,2]
[408662339,1774080642390,-3208.16982927,0.00015665,2]
[408662340,1774080642400,-320.579483,0.00015675,7]
[408662341,1774080642410,-369.739025,0.00015679,7]
[408662342,1774080642420,-1258.97084529,0.0001568,2]
[408662343,1774080642430,-5993.33026931,0.00015683,2]
[408662344,1774080642440,-417.81550229,0.00015698,2]
[408662345,1774080642450,-2000.0,0.000157,2]
[408662346,1774080642461,-600.0,0.000157,5]
[408662347,1774080642470,-3208.16982927,0.00015704,2]
[408662348,1774080642479,-5993.33026931,0.00015719,2]
[408662349,1774080642489,-500.0,0.00015726,2]
[408662350,1774080642499,-3208.16982927,0.00015744,2]
[408662351,1774080642510,-417.81550229,0.00015749,2]
[408662352,1774080642520,-5993.33026931,0.00015756,2]
[408662353,1774080642530,-3208.16982927,0.00015783,2]
[408662354,1774080642543,-5993.33026931,0.00015792,2]
[408662355,1774080642553,-417.81550229,0.00015799,2]
[408662356,1774080642564,-2000.0,0.000158,2]
[408662357,1774080642574,-600.0,0.000158,5]
[408662358,1774080642585,-2583.0,0.00015804,2]
[408662359,1774080642594,-2583.0,0.0001582,2]
[408662360,1774080642604,-3208.16982927,0.00015822,2]
[408662361,1774080642614,-5993.33026931,0.00015828,2]
[408662362,1774080642623,-150.0,0.00015841,7]
[408662363,1774080642634,-296.0,0.00015844,2]
[408662364,1774080642647,-417.81550229,0.0001585,2]
[408662367,1774080642657,-3208.16982927,0.00015861,2]
[408662369,1774080642666,-5993.33026931,0.00015864,2]
[408662372,1774080642677,-1536.048,0.0001589,2]
[408662374,1774080642688,-2000.0,0.0001589,2]
[408662375,1774080642698,-2215.84,0.00015895,2]
[408662376,1774080642708,-152.31545442,0.00015899,2]
[408662377,1774080642719,-152.31545439,0.00015899,2]
[408662378,1774080642729,-152.31545439,0.00015899,2]
[408662380,1774080642739,-152.31545439,0.000159,2]
[408662382,1774080642752,-152.31545439,0.000159,2]
[408662386,1774080642762,-152.31545439,0.000159,2]
[408662389,1774080642772,-18793.7714,0.000159,2]
[408662392,1774080642782,-152.31545439,0.000159,2]
[408662394,1774080642791,-358.12750716,0.000159,3]
[408662398,1774080642801,-1346.34799728,0.000159,2]
[408662401,1774080642811,-2000.0,0.000159,2]
[408662403,1774080642820,-600.0,0.000159,5]
[408662404,1774080642831,-3208.16982927,0.000159,2]
[408662405,1774080642841,-5993.33026931,0.000159,2]
[408662406,1774080642851,-947.14397972,0.000159,2]
[408662407,1774080642861,-417.81550229,0.000159,2]
[408662408,1774080642871,-522.23861446,0.000159,2]
[408662409,1774080642881,-5683.25740505,0.000159,2]
[408662410,1774080642891,-1303.40043052,0.000159,2]
[408662411,1774080642901,-223.54719898,0.000159,2]
[408662412,1774080642911,-170.0,0.00015918,2]
[408662413,1774080642921,-2583.0,0.0001595,2]
[408662414,1774080642931,-1962.81419762,0.00015956,2]
[408662415,1774080642945,-500.0,0.00015973,2]
[408662416,1774080642955,-500.0,0.00015973,2]
[408662417,1774080642965,-500.0,0.00015973,2]
[408662418,1774080642975,-500.0,0.00015973,2]
[408662419,1774080642985,-1521.0,0.00015983,2]
[408662420,1774080642995,-1521.0,0.00015983,2]
[408662421,1774080643006,-1521.0,0.00015983,2]
[408662422,1774080643016,-1521.0,0.00015983,2]
[408662423,1774080643026,-1521.0,0.00015983,2]
[408662424,1774080643037,-1521.0,0.00015983,2]
[408662425,1774080643047,-1521.0,0.00015983,2]
[408662426,1774080643058,-1521.0,0.00015983,2]
[408662427,1774080643068,-1521.0,0.00015983,2]
[408662428,1774080643079,-1521.0,0.00015983,2]
[408662429,1774080643088,-1521.0,0.00015983,2]
[408662430,1774080643099,-1521.0,0.00015983,2]
[408662431,1774080643109,-1521.0,0.00015983,2]
[408662432,1774080643120,-1521.0,0.00015983,2]
[408662433,1774080643133,-1521.0,0.00015983,2]
[408662434,1774080643143,-1521.0,0.00015983,2]
[408662435,1774080643152,-1521.0,0.00015983,2]
[408662436,1774080643163,-1521.0,0.00015983,2]
[408662437,1774080643173,-1361.4671969,0.00015983,2]
[408662438,1774080643183,-151.0,0.00015983,2]
[408662439,1774080643193,-152.91910529,0.00015983,2]
[408662440,1774080643203,-153.0,0.00015983,2]
[408662441,1774080643214,-153.0,0.00015983,2]
[408662442,1774080643224,-153.0,0.00015983,2]
[408662443,1774080643235,-237.93814367,0.00015983,2]
[408662444,1774080643246,-500.0,0.00015994,2]
[408662445,1774080643256,-199156.2859425,0.00015994,2]
[408662446,1774080643266,-770.0,0.00015995,5]
[408662447,1774080643276,-45323.50455545,0.00015995,2]
[408662448,1774080643285,-321055.0057357,0.00015999,2]
[408662449,1774080643294,-9648.3516316,0.00015999,2]
[408662450,1774080643304,-3192.8831213,0.00015999,2]
[408662451,1774080643314,-787.0,0.00016,5]
[408662452,1774080643323,-3478082.3888281,0.00016,2]
[408662453,1774080643381,-596.298,0.00016,2]
[408662462,1774080645778,-338.749248,0.00015582,7]
[408662464,1774080645787,-10550.43901174,0.00016,2]
[408662466,1774080645797,-1386.53719003,0.00016,2]
[408662471,1774080646199,-1383.06069021,0.00016,2]
[408662472,1774080646212,-911.19309618,0.00016,2]
[408662491,1774081832153,-181.688006,0.00013388,2]
[408662492,1774081832163,-5000.0,0.00013422,2]
[408662493,1774081832173,-262.24138019,0.00013456,2]
[408662494,1774081832183,-3048.60224252,0.00013529,2]
[408662495,1774081832194,-1200.0,0.00013622,2]
[408662496,1774081832203,-500.0,0.00013625,2]
[408662498,1774081832213,-1200.0,0.00013989,2]
[408662500,1774081832226,-300.0,0.00013989,2]
[408662503,1774081832236,-300.0,0.00013989,2]
[408662505,1774081832246,-300.0,0.00013989,2]
[408662506,1774081832257,-300.0,0.00013989,2]
[408662508,1774081832267,-11350.00421475,0.0001399,2]
[408662510,1774081832277,-5042.55,0.00014036,2]
[408662511,1774081832287,-700.0,0.00014356,2]
[408662512,1774081832297,-500.0,0.00014356,2]
[408662513,1774081832307,-166.93,0.00014505,2]
[408662514,1774081832316,-150.0,0.00014505,2]
[408662515,1774081832326,-600.0,0.00014727,2]
[408662516,1774081832336,-600.0,0.00014727,2]
[408662517,1774081832345,-600.0,0.00014727,2]
[408662518,1774081832355,-5000.0,0.00014727,2]
[408662519,1774081832364,-502.58732144,0.00014727,2]
[408662520,1774081832374,-2500.0,0.00014727,2]
[408662521,1774081832383,-2500.0,0.00014727,2]
[408662522,1774081832393,-2500.0,0.00014727,2]
[408662523,1774081832403,-66182.2181,0.00014787,2]
[408662524,1774081832416,-300.0,0.00014799,2]
[408662525,1774081832425,-300.0,0.00014799,2]
[408662526,1774081832435,-300.0,0.00014799,2]
[408662527,1774081832445,-300.0,0.00014799,2]
[408662528,1774081832681,-300.0,0.00014799,2]
[408662529,1774081832690,-2500.0,0.00014802,2]
[408662530,1774081832700,-1601.717906,0.00014802,2]
[408662531,1774081832709,-600.0,0.00014802,2]
[408662532,1774081832718,-600.0,0.00014802,2]
[408662533,1774081832727,-364.61,0.00014821,2]
[408662534,1774081832741,-160.66,0.00014821,2]
[408662535,1774081832751,-150.0,0.00014827,2]
[408662536,1774081832759,-611.17112057,0.00014828,2]
[408662537,1774081832769,-161.27759149,0.00014828,2]
[408662538,1774081832778,-488.98,0.00014836,2]
[408662539,1774081832788,-122245.63008661,0.00014887,2]
[408662540,1774081832799,-383.7,0.00014887,2]
[408662552,1774081838686,-1412.62,0.00014887,2]
[408662554,1774081838875,-4938.94304721,0.00014887,2]
[408662555,1774081838887,-1806.70766618,0.00014887,2]
[408662556,1774081838897,-250.0,0.00015,2]
[408662557,1774081838906,-1700.0,0.00015,5]
[408662558,1774081838915,-5077.92480735,0.00015,2]
[408662559,1774081838925,-3400.0,0.000151,5]
[408662560,1774081838934,-488.98,0.0001511,2]
[408662561,1774081838944,-347.37950279,0.00015198,2]
[408662562,1774081838955,-500.0,0.00015198,2]
[408662563,1774081838968,-295.353,0.00015198,2]
[408662564,1774081838978,-508.84865405,0.00015198,2]
[408662565,1774081838987,-228.2903642,0.00015198,2]
[408662566,1774081838997,-307.0344287,0.00015198,2]
[408662567,1774081839008,-500.0,0.00015198,2]
[408662568,1774081839017,-234.39133758,0.00015198,2]
[408662569,1774081839027,-500.0,0.00015198,2]
[408662570,1774081839036,-308.56667881,0.00015198,2]
[408662571,1774081839047,-500.0,0.00015198,2]
[408662572,1774081839056,-500.0,0.00015198,2]
[408662573,1774081839066,-500.0,0.00015198,2]
[408662575,1774081839075,-500.0,0.00015198,2]
[408662577,1774081839085,-500.0,0.00015198,2]
[408662579,1774081839094,-500.0,0.00015198,2]
[408662581,1774081839104,-500.0,0.00015198,2]
[408662583,1774081839113,-500.0,0.00015198,2]
[408662585,1774081839122,-500.0,0.00015198,2]
[408662587,1774081839132,-500.0,0.00015198,2]
[408662589,1774081839141,-500.0,0.00015198,2]
[408662591,1774081839151,-500.0,0.00015198,2]
[408662593,1774081839160,-500.0,0.00015198,2]
[408662595,1774081839169,-500.0,0.00015198,2]
[408662597,1774081839178,-500.0,0.00015198,2]
[408662599,1774081839187,-500.0,0.00015198,2]
[408662601,1774081839196,-500.0,0.00015198,2]
[408662603,1774081839206,-500.0,0.00015198,2]
[408662604,1774081839215,-500.0,0.00015198,2]
[408662607,1774081839224,-500.0,0.00015198,2]
[408662609,1774081839234,-472.24991379,0.00015198,2]
[408662611,1774081839243,-500.0,0.00015198,2]
[408662613,1774081839253,-500.0,0.00015198,2]
[408662615,1774081839262,-500.0,0.00015198,2]
[408662617,1774081839271,-316.80341449,0.00015199,2]
[408662619,1774081839280,-500.0,0.00015199,2]
[408662621,1774081839291,-500.0,0.00015199,2]
[408662623,1774081839301,-497.02745497,0.00015199,2]
[408662625,1774081839312,-2.97254503,0.00015199,2]
[408662627,1774081839322,-500.0,0.00015199,2]
[408662629,1774081839331,-103.84745451,0.00015199,2]
[408662632,1774081839350,-396.15254549,0.00015199,2]
[408662634,1774081839360,-500.0,0.00015199,2]
[408662636,1774081839370,-500.0,0.00015199,2]
[408662638,1774081839379,-451.88447736,0.00015199,2]
[408662640,1774081839391,-48.11552264,0.00015199,2]
[408662642,1774081839399,-500.0,0.00015199,2]
[408662643,1774081839409,-500.0,0.00015199,2]
[408662644,1774081839419,-500.0,0.00015199,2]
[408662645,1774081839429,-500.0,0.00015199,2]
[408662646,1774081839438,-59.26043496,0.00015199,2]
[408662647,1774081839450,-440.73956504,0.00015199,2]
[408662648,1774081839460,-57.72229793,0.00015199,2]
[408662649,1774081839472,-256.83430075,0.00015199,2]
[408662650,1774081839481,-500.0,0.00015199,2]
[408662651,1774081839491,-429.1455637,0.00015199,2]
[408662652,1774081839503,-70.8544363,0.00015199,2]
[408662653,1774081839512,-500.0,0.00015199,2]
[408662654,1774081839522,-177.41449937,0.00015199,2]
[408662656,1774081840311,-322.58550063,0.00015199,2]
[408662657,1774081840321,-500.0,0.00015199,2]
[408662658,1774081840330,-500.0,0.00015199,2]
[408662659,1774081840339,-500.0,0.00015199,2]
[408662660,1774081840349,-500.0,0.00015199,2]
[408662661,1774081840359,-500.0,0.00015199,2]
[408662662,1774081840368,-5100.0,0.000152,5]
[408662663,1774081840379,-993.0,0.00015274,2]
[408662664,1774081840388,-993.0,0.0001529,2]
[408662665,1774081840397,-218.39,0.00015296,2]